[Event "*** Titled Tuesday 3|2 Blitz"]
[Site "Chess.com"]
[Date "2015.06.02"]
[Round "5"]
[White "E-Shaposhnikov"]
[Black "Keaton87"]
[Result "1/2-1/2"]
[WhiteElo "2355"]
[BlackElo "2397"]
[TimeControl "180+2"]
[EndTime "11:59:15 PDT"]
[Termination "Game drawn by repetition"]

1. Nf3 {[%clk 0:01:35.3]} 1... d5 {[%clk 0:02:59.4]} 2. d4 {[%clk 0:01:36.1]}
2... Nf6 {[%clk 0:02:58.8]} 3. c4 {[%clk 0:01:37]} 3... e6 {[%clk 0:03:00.2]} 4.
Nc3 {[%clk 0:01:37.5]} 4... Be7 {[%clk 0:03:01.3]} 5. Bf4 {[%clk 0:01:39.1]}
5... O-O {[%clk 0:03:01.8]} 6. e3 {[%clk 0:01:40.8]} 6... b6 {[%clk 0:03:02.8]}
7. Rc1 {[%clk 0:01:38.9]} 7... c5 {[%clk 0:03:00.5]} 8. cxd5 {[%clk 0:01:36.4]}
8... Nxd5 {[%clk 0:03:00]} 9. Nxd5 {[%clk 0:01:36.9]} 9... exd5 {[%clk
0:03:01.4]} 10. Bd3 {[%clk 0:01:34.6]} 10... Nc6 {[%clk 0:03:01]} 11. Ne5 {[%clk
0:01:21.8]} 11... Nxe5 {[%clk 0:02:59.1]} 12. Bxe5 {[%clk 0:01:23.7]} 12... c4
{[%clk 0:02:59.5]} 13. Bb1 {[%clk 0:01:19.9]} 13... Be6 {[%clk 0:03:00.6]} 14.
O-O {[%clk 0:01:18.7]} 14... b5 {[%clk 0:03:01.5]} 15. Qh5 {[%clk 0:01:12.9]}
15... g6 {[%clk 0:02:56.2]} 16. Qh6 {[%clk 0:01:10.4]} 16... Bf6 {[%clk
0:02:57.5]} 17. f4 {[%clk 0:01:09]} 17... Bxe5 {[%clk 0:02:50.8]} 18. fxe5
{[%clk 0:01:08]} 18... f5 {[%clk 0:02:48.7]} 19. exf6 {[%clk 0:00:48]} 19...
Rxf6 {[%clk 0:02:49.9]} 20. Rxf6 {[%clk 0:00:49.6]} 20... Qxf6 {[%clk
0:02:51.6]} 21. Rf1 {[%clk 0:00:51.1]} 21... Qg7 {[%clk 0:02:52.9]} 22. Qf4
{[%clk 0:00:50.9]} 22... Rf8 {[%clk 0:02:45.1]} 23. Qd6 {[%clk 0:00:50.5]} 23...
Rxf1+ {[%clk 0:02:45.1]} 24. Kxf1 {[%clk 0:00:52.4]} 24... Qf8+ {[%clk
0:02:46.4]} 25. Qxf8+ {[%clk 0:00:50.1]} 25... Kxf8 {[%clk 0:02:48.3]} 26. e4
{[%clk 0:00:46.3]} 26... dxe4 {[%clk 0:02:47]} 27. Bxe4 {[%clk 0:00:48.2]} 27...
Ke7 {[%clk 0:02:45.8]} 28. Ke2 {[%clk 0:00:46]} 28... Kd6 {[%clk 0:02:47]} 29.
Ke3 {[%clk 0:00:46.7]} 29... Bd5 {[%clk 0:02:36.8]} 30. g3 {[%clk 0:00:47.2]}
30... a5 {[%clk 0:01:42.7]} 31. a3 {[%clk 0:00:41.7]} 31... Bxe4 {[%clk
0:01:01.8]} 32. Kxe4 {[%clk 0:00:43.6]} 32... b4 {[%clk 0:01:03.6]} 33. axb4
{[%clk 0:00:40.9]} 33... a4 {[%clk 0:00:48]} 34. b5 {[%clk 0:00:32.5]} 34... c3
{[%clk 0:00:48.3]} 35. Kd3 {[%clk 0:00:33.4]} 35... cxb2 {[%clk 0:00:46.2]} 36.
Kc2 {[%clk 0:00:34.9]} 36... a3 {[%clk 0:00:45.2]} 37. Kb1 {[%clk 0:00:27.5]}
37... Kd5 {[%clk 0:00:45.4]} 38. Ka2 {[%clk 0:00:26.6]} 38... g5 {[%clk
0:00:39.5]} 39. g4 {[%clk 0:00:27.2]} 39... Kd6 {[%clk 0:00:22]} 40. Kb1 {[%clk
0:00:24.5]} 40... Kd5 {[%clk 0:00:18.7]} 41. Ka2 {[%clk 0:00:25.6]} 41... Kd6
{[%clk 0:00:14.1]} 42. Kb1 {[%clk 0:00:26.7]} 42... Ke6 {[%clk 0:00:15.4]} 43.
b6 {[%clk 0:00:24.7]} 43... Kd6 {[%clk 0:00:16.5]} 44. d5 {[%clk 0:00:26.2]}
44... Kd7 {[%clk 0:00:17.2]} 45. Kc2 {[%clk 0:00:25]} 45... Kd6 {[%clk
0:00:18.2]} 46. Kb1 {[%clk 0:00:25.8]} 46... Kd7 {[%clk 0:00:18.3]} 47. Ka2
{[%clk 0:00:27.1]} 47... Kd6 {[%clk 0:00:19.3]} 48. Kb1 {[%clk 0:00:28.2]}
1/2-1/2

[Event "*** Titled Tuesday 3|2 Blitz"]
[Site "Chess.com"]
[Date "2015.06.02"]
[Round "5"]
[White "Gevorg_Harutjunyan"]
[Black "Tilicheev_Viacheslav"]
[Result "1/2-1/2"]
[WhiteElo "2536"]
[BlackElo "2428"]
[TimeControl "180+2"]
[EndTime "11:59:17 PDT"]
[Termination "Game drawn by repetition"]

1. Nf3 {[%clk 0:03:00.9]} 1... d5 {[%clk 0:03:00.9]} 2. g3 {[%clk 0:03:00.4]}
2... Nc6 {[%clk 0:03:01.9]} 3. d4 {[%clk 0:03:00.3]} 3... Bg4 {[%clk 0:03:02.6]}
4. Bg2 {[%clk 0:03:00.6]} 4... Qd7 {[%clk 0:03:03.4]} 5. h3 {[%clk 0:03:01.3]}
5... Bxf3 {[%clk 0:03:03.9]} 6. Bxf3 {[%clk 0:03:02]} 6... O-O-O {[%clk
0:02:40.6]} 7. c3 {[%clk 0:02:57]} 7... e5 {[%clk 0:02:39.7]} 8. dxe5 {[%clk
0:02:55.3]} 8... Nxe5 {[%clk 0:02:41.6]} 9. Bg2 {[%clk 0:02:56.4]} 9... Nf6
{[%clk 0:02:40.2]} 10. O-O {[%clk 0:02:53]} 10... h5 {[%clk 0:02:32.9]} 11. Qd4
{[%clk 0:02:46.9]} 11... Nc6 {[%clk 0:02:30.6]} 12. Qa4 {[%clk 0:02:48.3]} 12...
h4 {[%clk 0:02:28.5]} 13. g4 {[%clk 0:02:47.5]} 13... Bd6 {[%clk 0:02:29.1]} 14.
Na3 {[%clk 0:02:40.3]} 14... a6 {[%clk 0:02:25.1]} 15. Bg5 {[%clk 0:02:34.2]}
15... Qe6 {[%clk 0:02:13.9]} 16. e3 {[%clk 0:01:44.9]} 16... Be7 {[%clk
0:02:05.1]} 17. Rad1 {[%clk 0:01:41.2]} 17... Ne4 {[%clk 0:02:01]} 18. Bxe7
{[%clk 0:01:40.5]} 18... Qxe7 {[%clk 0:02:01.9]} 19. Qc2 {[%clk 0:01:02.8]}
19... Rhe8 {[%clk 0:01:57.2]} 20. c4 {[%clk 0:00:59.9]} 20... d4 {[%clk
0:01:51.8]} 21. Rfe1 {[%clk 0:00:52.1]} 21... d3 {[%clk 0:01:34.2]} 22. Rxd3
{[%clk 0:00:48.7]} 22... Nb4 {[%clk 0:01:34.9]} 23. Rxd8+ {[%clk 0:00:49.1]}
23... Qxd8 {[%clk 0:01:36.8]} 24. Qa4 {[%clk 0:00:38.1]} 24... Nd3 {[%clk
0:01:32.2]} 25. Bxe4 {[%clk 0:00:26.1]} 25... Nxe1 {[%clk 0:01:31]} 26. c5
{[%clk 0:00:27.6]} 26... f5 {[%clk 0:01:25.5]} 27. Bxf5+ {[%clk 0:00:25.6]}
27... Kb8 {[%clk 0:01:22.8]} 28. Be4 {[%clk 0:00:26.8]} 28... Rxe4 {[%clk
0:00:51.9]} 29. Qxe4 {[%clk 0:00:27]} 29... Qd1 {[%clk 0:00:53.8]} 30. Kh2
{[%clk 0:00:18]} 30... Qe2 {[%clk 0:00:49.9]} 31. Kg1 {[%clk 0:00:18.2]} 31...
Nd3 {[%clk 0:00:43.1]} 32. Qf5 {[%clk 0:00:15.7]} 32... Ka7 {[%clk 0:00:29.6]}
33. c6 {[%clk 0:00:17.1]} 33... g6 {[%clk 0:00:21.7]} 34. Qf8 {[%clk 0:00:14.4]}
34... Ne1 {[%clk 0:00:21.4]} 35. Qc5+ {[%clk 0:00:14.6]} 35... b6 {[%clk
0:00:12]} 36. Qf8 {[%clk 0:00:15]} 36... Nf3+ {[%clk 0:00:13.2]} 37. Kg2 {[%clk
0:00:16.4]} 37... Ne1+ {[%clk 0:00:14.4]} 38. Kg1 {[%clk 0:00:17.7]} 38... Nf3+
{[%clk 0:00:13.8]} 39. Kg2 {[%clk 0:00:18.4]} 39... Ne1+ {[%clk 0:00:08.8]} 40.
Kg1 {[%clk 0:00:14.3]} 40... Nf3+ {[%clk 0:00:10]} 1/2-1/2

[Event "*** Titled Tuesday 3|2 Blitz"]
[Site "Chess.com"]
[Date "2015.06.02"]
[Round "5"]
[White "Viaje"]
[Black "wonderfultime"]
[Result "0-1"]
[WhiteElo "2165"]
[BlackElo "2520"]
[TimeControl "180+2"]
[EndTime "11:59:21 PDT"]
[Termination "wonderfultime won by checkmate"]

1. d4 {[%clk 0:03:01.9]} 1... d5 {[%clk 0:02:58.3]} 2. c4 {[%clk 0:03:01.9]}
2... c6 {[%clk 0:02:59.2]} 3. Nf3 {[%clk 0:03:02.1]} 3... Nf6 {[%clk 0:03:00]}
4. Nc3 {[%clk 0:03:03.6]} 4... dxc4 {[%clk 0:03:00.8]} 5. a4 {[%clk 0:03:03.5]}
5... Bf5 {[%clk 0:03:01.7]} 6. Ne5 {[%clk 0:03:04.4]} 6... Nbd7 {[%clk
0:03:01.5]} 7. Nxc4 {[%clk 0:03:05.3]} 7... Qc7 {[%clk 0:03:03]} 8. g3 {[%clk
0:03:05.9]} 8... e5 {[%clk 0:03:04.4]} 9. dxe5 {[%clk 0:03:07.8]} 9... Nxe5
{[%clk 0:03:06.3]} 10. Bf4 {[%clk 0:03:09.3]} 10... Nfd7 {[%clk 0:03:07.9]} 11.
Bg2 {[%clk 0:03:10.5]} 11... f6 {[%clk 0:03:09.4]} 12. O-O {[%clk 0:03:09.7]}
12... g5 {[%clk 0:03:08.8]} 13. Nxe5 {[%clk 0:02:56]} 13... gxf4 {[%clk
0:02:55.4]} 14. Nxd7 {[%clk 0:02:56.7]} 14... Bxd7 {[%clk 0:02:57.3]} 15. a5
{[%clk 0:02:51.1]} 15... a6 {[%clk 0:02:46.5]} 16. Qb3 {[%clk 0:02:51.1]} 16...
O-O-O {[%clk 0:02:21.8]} 17. Rfc1 {[%clk 0:02:50.7]} 17... fxg3 {[%clk
0:02:21.6]} 18. hxg3 {[%clk 0:02:33.5]} 18... Kb8 {[%clk 0:02:20.9]} 19. Nd5
{[%clk 0:02:32.7]} 19... Qe5 {[%clk 0:02:19.2]} 20. Nb6 {[%clk 0:02:31.4]} 20...
Be6 {[%clk 0:02:08.3]} 21. Qc2 {[%clk 0:02:23.1]} 21... h5 {[%clk 0:01:45.4]}
22. Bxc6 {[%clk 0:02:22.1]} 22... Bh6 {[%clk 0:00:56.7]} 23. e3 {[%clk
0:01:47.1]} 23... h4 {[%clk 0:00:48]} 24. Bxb7 {[%clk 0:01:46.7]} 24... hxg3
{[%clk 0:00:39.8]} 25. Bg2 {[%clk 0:01:22.5]} 25... gxf2+ {[%clk 0:00:40.1]} 26.
Kf1 {[%clk 0:01:22.8]} 26... Qb5+ {[%clk 0:00:32.3]} 27. Kxf2 {[%clk 0:01:12.5]}
27... Qe5 {[%clk 0:00:09.5]} 28. Re1 {[%clk 0:00:57.8]} 28... Bg5 {[%clk
0:00:10.8]} 29. Qc6 {[%clk 0:00:53.5]} 29... Rd2+ {[%clk 0:00:06.7]} 30. Kf1
{[%clk 0:00:45.6]} 30... Rxg2 {[%clk 0:00:05.7]} 31. Qa8+ {[%clk 0:00:44.6]}
31... Kc7 {[%clk 0:00:06.6]} 32. Rac1+ {[%clk 0:00:39.5]} 32... Kd6 {[%clk
0:00:06.8]} 33. Rc6+ {[%clk 0:00:14.1]} 33... Ke7 {[%clk 0:00:07.3]} 34. Qb7+
{[%clk 0:00:15.5]} 34... Ke8 {[%clk 0:00:07.1]} 35. Rc8+ {[%clk 0:00:12.5]}
35... Bxc8 {[%clk 0:00:08.3]} 36. Qxc8+ {[%clk 0:00:14.4]} 36... Kf7 {[%clk
0:00:09.8]} 37. Qd7+ {[%clk 0:00:13.6]} 37... Kg6 {[%clk 0:00:10.9]} 38. Qd3+
{[%clk 0:00:12.5]} 38... f5 {[%clk 0:00:12.3]} 39. Kxg2 {[%clk 0:00:10.9]} 39...
Rh2+ {[%clk 0:00:13.4]} 40. Kf1 {[%clk 0:00:12.1]} 40... Qg3 {[%clk 0:00:14.1]}
41. Re2 {[%clk 0:00:03]} 41... Rh1# {[%clk 0:00:15.3]} 0-1

[Event "*** Titled Tuesday 3|2 Blitz"]
[Site "Chess.com"]
[Date "2015.06.02"]
[Round "5"]
[White "GMNeiksans"]
[Black "IMRosen"]
[Result "1-0"]
[WhiteElo "2525"]
[BlackElo "2260"]
[TimeControl "180+2"]
[EndTime "11:59:44 PDT"]
[Termination "GMNeiksans won on time"]

1. Nf3 {[%clk 0:03:01.9]} 1... Nf6 {[%clk 0:03:00.1]} 2. c4 {[%clk 0:03:01.7]}
2... e6 {[%clk 0:03:00.8]} 3. g3 {[%clk 0:03:01.3]} 3... d5 {[%clk 0:03:01.9]}
4. Bg2 {[%clk 0:03:02.6]} 4... Be7 {[%clk 0:02:55.3]} 5. O-O {[%clk 0:03:03.3]}
5... O-O {[%clk 0:02:56.9]} 6. d4 {[%clk 0:03:04.2]} 6... c6 {[%clk 0:02:54.1]}
7. Qc2 {[%clk 0:03:03.7]} 7... b5 {[%clk 0:02:53.5]} 8. b3 {[%clk 0:02:59.6]}
8... a5 {[%clk 0:02:53.8]} 9. Bf4 {[%clk 0:02:44.6]} 9... Ba6 {[%clk 0:02:13.9]}
10. Nbd2 {[%clk 0:02:43.9]} 10... Nbd7 {[%clk 0:02:11.5]} 11. Rfe1 {[%clk
0:02:36.2]} 11... Rc8 {[%clk 0:02:10.3]} 12. c5 {[%clk 0:02:12.9]} 12... Nh5
{[%clk 0:02:02.7]} 13. e3 {[%clk 0:02:03.1]} 13... Nxf4 {[%clk 0:01:39.2]} 14.
exf4 {[%clk 0:02:03.9]} 14... b4 {[%clk 0:01:33]} 15. a3 {[%clk 0:02:04.3]}
15... Ra8 {[%clk 0:01:33.3]} 16. Bf1 {[%clk 0:01:58.9]} 16... Bxf1 {[%clk
0:01:28.7]} 17. Nxf1 {[%clk 0:02:00]} 17... Qc7 {[%clk 0:01:30.6]} 18. Ra2
{[%clk 0:02:00.9]} 18... Ra7 {[%clk 0:01:16.9]} 19. Rea1 {[%clk 0:02:01.9]}
19... Rfa8 {[%clk 0:01:18.5]} 20. Ne3 {[%clk 0:01:53.9]} 20... Bf6 {[%clk
0:01:19.7]} 21. Qd3 {[%clk 0:01:53.5]} 21... Qb7 {[%clk 0:01:08.3]} 22. Nc2
{[%clk 0:01:48]} 22... h6 {[%clk 0:01:02.3]} 23. axb4 {[%clk 0:01:44]} 23...
axb4 {[%clk 0:01:01.2]} 24. Rxa7 {[%clk 0:01:44.9]} 24... Rxa7 {[%clk
0:01:03.1]} 25. Rxa7 {[%clk 0:01:46]} 25... Qxa7 {[%clk 0:01:05]} 26. Nxb4
{[%clk 0:01:46.6]} 26... Qb7 {[%clk 0:00:55.3]} 27. Nc2 {[%clk 0:01:43.1]} 27...
Nb8 {[%clk 0:00:52.6]} 28. b4 {[%clk 0:01:31.7]} 28... Na6 {[%clk 0:00:53.9]}
29. Qa3 {[%clk 0:01:26.4]} 29... Nc7 {[%clk 0:00:53]} 30. Qa5 {[%clk 0:01:25.2]}
30... Nb5 {[%clk 0:00:53.6]} 31. Ne5 {[%clk 0:01:23.8]} 31... Bxe5 {[%clk
0:00:52.3]} 32. fxe5 {[%clk 0:01:24.9]} 32... Kh7 {[%clk 0:00:49]} 33. Kg2
{[%clk 0:01:25]} 33... Kg6 {[%clk 0:00:40.2]} 34. Kf3 {[%clk 0:01:18.5]} 34...
Kf5 {[%clk 0:00:34.5]} 35. Ke3 {[%clk 0:01:11]} 35... Kg6 {[%clk 0:00:32.8]} 36.
f4 {[%clk 0:01:08.7]} 36... h5 {[%clk 0:00:33.5]} 37. Kd3 {[%clk 0:01:05.3]}
37... Qb8 {[%clk 0:00:34.5]} 38. Ne3 {[%clk 0:01:05.1]} 38... h4 {[%clk
0:00:26.8]} 39. Qa6 {[%clk 0:01:03]} 39... hxg3 {[%clk 0:00:26.7]} 40. hxg3
{[%clk 0:01:03.6]} 40... Qe8 {[%clk 0:00:22.2]} 41. Qb7 {[%clk 0:00:57.3]} 41...
f6 {[%clk 0:00:15.3]} 42. g4 {[%clk 0:00:48.2]} 42... fxe5 {[%clk 0:00:14]} 43.
dxe5 {[%clk 0:00:49.6]} 43... Kh7 {[%clk 0:00:14.3]} 44. Kd2 {[%clk 0:00:21.2]}
44... d4 {[%clk 0:00:13.7]} 45. Nc4 {[%clk 0:00:18.3]} 45... Qg6 {[%clk
0:00:13.5]} 46. Qxc6 {[%clk 0:00:17.4]} 1-0

[Event "*** Titled Tuesday 3|2 Blitz"]
[Site "Chess.com"]
[Date "2015.06.02"]
[Round "5"]
[White "Schemato"]
[Black "MFBerna"]
[Result "0-1"]
[WhiteElo "2033"]
[BlackElo "1901"]
[TimeControl "180+2"]
[EndTime "11:59:48 PDT"]
[Termination "MFBerna won by checkmate"]

1. c4 {[%clk 0:03:01.9]} 1... e6 {[%clk 0:00:29.8]} 2. Nc3 {[%clk 0:02:21]} 2...
d5 {[%clk 0:00:31.7]} 3. d4 {[%clk 0:02:21.4]} 3... Be7 {[%clk 0:00:33]} 4. cxd5
{[%clk 0:02:18.7]} 4... exd5 {[%clk 0:00:33.1]} 5. Bf4 {[%clk 0:02:19.6]} 5...
c6 {[%clk 0:00:34.6]} 6. e3 {[%clk 0:02:21]} 6... Bf5 {[%clk 0:00:36]} 7. g4
{[%clk 0:02:21.3]} 7... Be6 {[%clk 0:00:37.4]} 8. h3 {[%clk 0:02:20.1]} 8... Nd7
{[%clk 0:00:38.6]} 9. Bg2 {[%clk 0:02:19.9]} 9... h5 {[%clk 0:00:38.9]} 10. gxh5
{[%clk 0:02:07.9]} 10... Ndf6 {[%clk 0:00:38.9]} 11. Bf3 {[%clk 0:02:07.5]}
11... Nh6 {[%clk 0:00:38.9]} 12. Nge2 {[%clk 0:02:03.3]} 12... Nf5 {[%clk
0:00:36.4]} 13. Ng3 {[%clk 0:02:02.2]} 13... Nh4 {[%clk 0:00:37.4]} 14. Bg4
{[%clk 0:01:40]} 14... Ng2+ {[%clk 0:00:34.3]} 15. Kf1 {[%clk 0:01:40.7]} 15...
Nxf4 {[%clk 0:00:36.2]} 16. exf4 {[%clk 0:01:41.5]} 16... Qd6 {[%clk 0:00:14.5]}
17. f5 {[%clk 0:01:36.1]} 17... Bd7 {[%clk 0:00:16]} 18. Kg2 {[%clk 0:01:31.2]}
18... O-O-O {[%clk 0:00:16.8]} 19. Qf3 {[%clk 0:01:26.6]} 19... Kb8 {[%clk
0:00:17.3]} 20. Rhe1 {[%clk 0:01:23.2]} 20... Nh7 {[%clk 0:00:15.8]} 21. Re2
{[%clk 0:01:09.3]} 21... Bf6 {[%clk 0:00:16.1]} 22. Qd3 {[%clk 0:01:06.3]} 22...
Qf4 {[%clk 0:00:15.1]} 23. Rd1 {[%clk 0:00:57.2]} 23... Rhe8 {[%clk 0:00:12.3]}
24. Re3 {[%clk 0:00:47.9]} 24... Ng5 {[%clk 0:00:11.2]} 25. f3 {[%clk
0:00:40.6]} 25... Rxe3 {[%clk 0:00:08.3]} 26. Qd2 {[%clk 0:00:41]} 26... Rxf3
{[%clk 0:00:07]} 27. Qxf4+ {[%clk 0:00:38.8]} 27... Rxf4 {[%clk 0:00:08.9]} 28.
Nge2 {[%clk 0:00:36.9]} 28... Re4 {[%clk 0:00:07.3]} 29. Nxe4 {[%clk 0:00:37.4]}
29... Nxe4 {[%clk 0:00:08.3]} 30. Nc3 {[%clk 0:00:33.7]} 30... Re8 {[%clk
0:00:07.6]} 31. a4 {[%clk 0:00:29]} 31... Nd6 {[%clk 0:00:08.3]} 32. b3 {[%clk
0:00:26.3]} 32... Nxf5 {[%clk 0:00:08.4]} 33. Rb1 {[%clk 0:00:22.7]} 33... Ne3+
{[%clk 0:00:09.2]} 34. Kf3 {[%clk 0:00:23.5]} 34... Bxg4+ {[%clk 0:00:08.5]} 35.
hxg4 {[%clk 0:00:24.4]} 35... Bxd4 {[%clk 0:00:10.4]} 36. Ne2 {[%clk 0:00:24.3]}
36... Bb6 {[%clk 0:00:10.5]} 37. b4 {[%clk 0:00:24.3]} 37... Nc2 {[%clk
0:00:11.2]} 38. Nf4 {[%clk 0:00:20.6]} 38... Re3+ {[%clk 0:00:10.9]} 39. Kg2
{[%clk 0:00:19.7]} 39... Re4 {[%clk 0:00:11.5]} 40. Nh3 {[%clk 0:00:15.8]} 40...
Rxg4+ {[%clk 0:00:12.1]} 41. Kf3 {[%clk 0:00:17.2]} 41... Rxb4 {[%clk 0:00:14]}
42. Rg1 {[%clk 0:00:16.2]} 42... Bxg1 {[%clk 0:00:14.5]} 43. Nxg1 {[%clk
0:00:16.2]} 43... Rxa4 {[%clk 0:00:16.4]} 44. Ne2 {[%clk 0:00:16.7]} 44... Nd4+
{[%clk 0:00:16.7]} 45. Nxd4 {[%clk 0:00:17.3]} 45... Rxd4 {[%clk 0:00:18.6]} 46.
Ke3 {[%clk 0:00:17.7]} 46... Rh4 {[%clk 0:00:19.4]} 47. h6 {[%clk 0:00:17.8]}
47... Rxh6 {[%clk 0:00:21.3]} 48. Kf4 {[%clk 0:00:17.8]} 48... a5 {[%clk
0:00:23.2]} 49. Ke5 {[%clk 0:00:18.8]} 49... a4 {[%clk 0:00:25.1]} 50. Kd4
{[%clk 0:00:18.3]} 50... a3 {[%clk 0:00:27]} 51. Kc5 {[%clk 0:00:19.7]} 51... a2
{[%clk 0:00:28.9]} 52. Kb6 {[%clk 0:00:21]} 52... a1=Q {[%clk 0:00:29.2]} 53.
Kc5 {[%clk 0:00:21.7]} 53... Qc3+ {[%clk 0:00:30.3]} 54. Kb6 {[%clk 0:00:22.5]}
54... Qb4# {[%clk 0:00:31.7]} 0-1

[Event "*** Titled Tuesday 3|2 Blitz"]
[Site "Chess.com"]
[Date "2015.06.02"]
[Round "5"]
[White "GMG"]
[Black "jlandaw"]
[Result "0-1"]
[WhiteElo "2452"]
[BlackElo "2322"]
[TimeControl "180+2"]
[EndTime "12:00:26 PDT"]
[Termination "jlandaw won by resignation"]

1. c4 {[%clk 0:03:01.9]} 1... e5 {[%clk 0:03:00.4]} 2. Nc3 {[%clk 0:03:03]} 2...
Nc6 {[%clk 0:03:01.3]} 3. Nf3 {[%clk 0:03:04.2]} 3... g6 {[%clk 0:03:02.4]} 4.
d4 {[%clk 0:03:04.8]} 4... exd4 {[%clk 0:02:57.4]} 5. Nd5 {[%clk 0:02:56.1]}
5... Bg7 {[%clk 0:02:49.8]} 6. Bg5 {[%clk 0:02:56.5]} 6... f6 {[%clk 0:02:45.3]}
7. Bf4 {[%clk 0:02:56.9]} 7... d6 {[%clk 0:02:45.5]} 8. Nxd4 {[%clk 0:02:57.5]}
8... Nge7 {[%clk 0:02:43.3]} 9. Nb5 {[%clk 0:02:54.3]} 9... Nxd5 {[%clk
0:02:27.6]} 10. cxd5 {[%clk 0:02:56.2]} 10... Ne5 {[%clk 0:02:27.1]} 11. Rc1
{[%clk 0:02:56.1]} 11... c5 {[%clk 0:01:33.7]} 12. dxc6 {[%clk 0:02:56.2]} 12...
Qa5+ {[%clk 0:01:32]} 13. Nc3 {[%clk 0:02:55.6]} 13... O-O {[%clk 0:01:28.9]}
14. Qxd6 {[%clk 0:02:49.1]} 14... Rd8 {[%clk 0:01:15.4]} 15. Qa3 {[%clk
0:02:44.8]} 15... Qxa3 {[%clk 0:00:51]} 16. bxa3 {[%clk 0:02:46.7]} 16... bxc6
{[%clk 0:00:52.5]} 17. Bxe5 {[%clk 0:02:35.6]} 17... fxe5 {[%clk 0:00:53.4]} 18.
e3 {[%clk 0:02:37.1]} 18... Be6 {[%clk 0:00:52.4]} 19. Be2 {[%clk 0:02:19]}
19... Bf8 {[%clk 0:00:52.8]} 20. Nb1 {[%clk 0:01:56]} 20... Bxa2 {[%clk
0:00:45.7]} 21. Bc4+ {[%clk 0:01:56.7]} 21... Bxc4 {[%clk 0:00:45.9]} 22. Rxc4
{[%clk 0:01:58.6]} 22... Rab8 {[%clk 0:00:30.8]} 23. O-O {[%clk 0:01:59.3]}
23... Rb6 {[%clk 0:00:31.9]} 24. g4 {[%clk 0:01:42.3]} 24... Rdb8 {[%clk
0:00:26]} 25. Rcc1 {[%clk 0:01:34.4]} 25... Kf7 {[%clk 0:00:22]} 26. Kg2 {[%clk
0:01:35.5]} 26... Ke6 {[%clk 0:00:22]} 27. Kf3 {[%clk 0:01:36.3]} 27... Bd6
{[%clk 0:00:17.7]} 28. Nd2 {[%clk 0:01:23.4]} 28... Bxa3 {[%clk 0:00:16.7]} 29.
Ra1 {[%clk 0:01:23.4]} 29... Bb4 {[%clk 0:00:16.2]} 30. Nc4 {[%clk 0:01:23.8]}
30... R6b7 {[%clk 0:00:17.3]} 31. Ra6 {[%clk 0:01:20.2]} 31... Kd5 {[%clk
0:00:14.7]} 32. Rc1 {[%clk 0:01:20.8]} 32... Rf8+ {[%clk 0:00:13.1]} 33. Ke2
{[%clk 0:00:52.4]} 33... Rbf7 {[%clk 0:00:13.8]} 34. Kd3 {[%clk 0:00:52.8]}
34... e4+ {[%clk 0:00:10.5]} 35. Kc2 {[%clk 0:00:53.5]} 35... Kxc4 {[%clk
0:00:11.5]} 36. Rxc6+ {[%clk 0:00:46.5]} 36... Kb5 {[%clk 0:00:12.9]} 37. Kb3
{[%clk 0:00:47.3]} 37... Rxf2 {[%clk 0:00:10.2]} 38. Rc7 {[%clk 0:00:48.1]}
38... a5 {[%clk 0:00:11.1]} 39. Rb7+ {[%clk 0:00:44.3]} 39... Ka6 {[%clk
0:00:12.5]} 40. Rxh7 {[%clk 0:00:37.2]} 40... R8f6 {[%clk 0:00:11.4]} 41. Rc8
{[%clk 0:00:33.8]} 41... Rb6 {[%clk 0:00:12.1]} 42. Ra8+ {[%clk 0:00:29.4]}
42... Kb5 {[%clk 0:00:13.5]} 43. Rd7 {[%clk 0:00:28.5]} 43... Rd2 {[%clk
0:00:10.7]} 44. Rxd2 {[%clk 0:00:20.9]} 44... Bxd2 {[%clk 0:00:12.6]} 45. Re8
{[%clk 0:00:22]} 45... Bxe3 {[%clk 0:00:13.4]} 46. Rxe4 {[%clk 0:00:22.6]} 46...
Bc5 {[%clk 0:00:14.6]} 47. h4 {[%clk 0:00:23.5]} 47... Rf6 {[%clk 0:00:15.2]}
48. h5 {[%clk 0:00:19.8]} 48... gxh5 {[%clk 0:00:16]} 49. gxh5 {[%clk
0:00:20.6]} 49... Rf3+ {[%clk 0:00:17.3]} 50. Ka2 {[%clk 0:00:21.6]} 50... Rh3
{[%clk 0:00:18.5]} 51. Re5 {[%clk 0:00:23]} 51... Kc4 {[%clk 0:00:18.6]} 52. Rf5
{[%clk 0:00:21.5]} 52... a4 {[%clk 0:00:19.1]} 53. Rg5 {[%clk 0:00:19.2]} 53...
Rh2+ {[%clk 0:00:19.5]} 54. Kb1 {[%clk 0:00:19.9]} 54... Bd4 {[%clk 0:00:20.2]}
55. Ra5 {[%clk 0:00:17.9]} 55... Kb4 {[%clk 0:00:19.6]} 56. Rd5 {[%clk
0:00:17.9]} 56... Bc3 {[%clk 0:00:18.8]} 57. Rd8 {[%clk 0:00:07.4]} 57... Kb3
{[%clk 0:00:19.9]} 58. Rb8+ {[%clk 0:00:06]} 58... Bb4 {[%clk 0:00:20.8]} 0-1